[Event "Live Chess"]
[Site "Chess.com"]
[Date "2024.06.02"]
[Round "-"]
[White "KeithArkell"]
[Black "GerardATHart"]
[Result "1-0"]
[WhiteElo "2413"]
[BlackElo "1379"]
[TimeControl "300"]
[EndTime "0:38:30 PDT"]
[Termination "KeithArkell won by resignation"]

1. d4 {[%clk 0:04:56.7]} 1... f5 {[%clk 0:04:58]} 2. Nf3 {[%clk 0:04:55.4]} 2...
Nf6 {[%clk 0:04:54.1]} 3. Bg5 {[%clk 0:04:53.8]} 3... Ne4 {[%clk 0:04:50]} 4. h4
{[%clk 0:04:49.2]} 4... h6 {[%clk 0:04:46.3]} 5. Bf4 {[%clk 0:04:45.6]} 5... d6
{[%clk 0:04:44.5]} 6. Nbd2 {[%clk 0:04:37.5]} 6... g6 {[%clk 0:04:42.6]} 7. e3
{[%clk 0:04:35.6]} 7... Bg7 {[%clk 0:04:40]} 8. Bd3 {[%clk 0:04:34.5]} 8... d5
{[%clk 0:04:35]} 9. c4 {[%clk 0:04:31.6]} 9... e6 {[%clk 0:04:33.3]} 10. cxd5
{[%clk 0:04:24]} 10... exd5 {[%clk 0:04:31.7]} 11. Be5 {[%clk 0:04:23.1]} 11...
O-O {[%clk 0:04:29.3]} 12. Bxg7 {[%clk 0:03:38]} 12... Kxg7 {[%clk 0:04:27.8]}
13. Rc1 {[%clk 0:03:35.4]} 13... Nc6 {[%clk 0:04:24.7]} 14. Ne5 {[%clk
0:03:32.7]} 14... Nxe5 {[%clk 0:04:13.3]} 15. dxe5 {[%clk 0:03:31.8]} 15... c6
{[%clk 0:04:08.8]} 16. f4 {[%clk 0:03:29.5]} 16... Be6 {[%clk 0:04:03.6]} 17.
Nxe4 {[%clk 0:03:26.5]} 17... dxe4 {[%clk 0:03:59.5]} 18. Bc4 {[%clk 0:03:25.3]}
18... Qxd1+ {[%clk 0:03:56.4]} 19. Kxd1 {[%clk 0:03:24.3]} 19... Bxc4 {[%clk
0:03:54.7]} 20. Rxc4 {[%clk 0:03:22.9]} 20... Rfd8+ {[%clk 0:03:52.2]} 21. Ke2
{[%clk 0:03:22.2]} 21... Rd3 {[%clk 0:03:49.2]} 22. Rhc1 {[%clk 0:03:20.7]}
22... Rad8 {[%clk 0:03:46.8]} 23. R1c2 {[%clk 0:03:18.3]} 23... Kf7 {[%clk
0:03:44.7]} 24. a4 {[%clk 0:03:15.8]} 24... Ke6 {[%clk 0:03:41.4]} 25. R4c3
{[%clk 0:03:14.1]} 25... Rd1 {[%clk 0:03:37.9]} 26. b4 {[%clk 0:03:13]} 26...
Ra1 {[%clk 0:03:32]} 27. b5 {[%clk 0:03:11.8]} 27... Rxa4 {[%clk 0:03:28]} 28.
bxc6 {[%clk 0:03:10.8]} 28... bxc6 {[%clk 0:03:26]} 29. Rxc6+ {[%clk 0:03:09.9]}
29... Kf7 {[%clk 0:03:23.2]} 30. Rf6+ {[%clk 0:03:09]} 30... Kg7 {[%clk
0:03:21.7]} 31. Kf2 {[%clk 0:03:02.1]} 31... Ra3 {[%clk 0:03:18.5]} 32. Rc7+
{[%clk 0:02:53.3]} 32... Kh8 {[%clk 0:03:14.1]} 33. Rd6 {[%clk 0:02:50]} 33...
Rd3 {[%clk 0:03:09.9]} 34. Rxd8+ {[%clk 0:02:48.4]} 34... Rxd8 {[%clk
0:03:08.2]} 35. Rxa7 {[%clk 0:02:47.6]} 35... Rd2+ {[%clk 0:03:05.7]} 36. Kf1
{[%clk 0:02:46.1]} 36... Rd3 {[%clk 0:03:03.7]} 37. Ke2 {[%clk 0:02:45]} 37...
Rb3 {[%clk 0:03:02.1]} 38. e6 {[%clk 0:02:41.4]} 38... Kg8 {[%clk 0:03:00.4]}
39. Ra8+ {[%clk 0:02:40.3]} 39... Kg7 {[%clk 0:02:57.9]} 40. e7 {[%clk
0:02:39.6]} 40... Rb2+ {[%clk 0:02:55.1]} 41. Kf1 {[%clk 0:02:38.3]} 41... Rb1+
{[%clk 0:02:52.3]} 42. Kf2 {[%clk 0:02:37.7]} 42... Rb2+ {[%clk 0:02:51.1]} 43.
Kg1 {[%clk 0:02:36.8]} 43... Rb1+ {[%clk 0:02:46.8]} 44. Kh2 {[%clk 0:02:35.9]}
44... Re1 {[%clk 0:02:42.1]} 45. e8=Q {[%clk 0:02:35.1]} 1-0

[Event "Live Chess"]
[Site "Chess.com"]
[Date "2024.06.02"]
[Round "-"]
[White "ZombieChainsaw"]
[Black "hapehansen"]
[Result "0-1"]
[WhiteElo "1793"]
[BlackElo "2251"]
[TimeControl "300"]
[EndTime "0:38:44 PDT"]
[Termination "hapehansen won on time"]

1. e4 {[%clk 0:04:57.4]} 1... c6 {[%clk 0:04:56.7]} 2. d3 {[%clk 0:04:56.1]}
2... d5 {[%clk 0:04:56.3]} 3. Nd2 {[%clk 0:04:55.4]} 3... e5 {[%clk 0:04:52.3]}
4. Ngf3 {[%clk 0:04:54.6]} 4... Bd6 {[%clk 0:04:50.9]} 5. d4 {[%clk 0:04:52.7]}
5... exd4 {[%clk 0:04:44.2]} 6. exd5 {[%clk 0:04:48.7]} 6... cxd5 {[%clk
0:04:40.3]} 7. Be2 {[%clk 0:04:27.3]} 7... Nc6 {[%clk 0:04:36.9]} 8. O-O {[%clk
0:04:23.5]} 8... Nf6 {[%clk 0:04:34.6]} 9. Nb3 {[%clk 0:04:20]} 9... O-O {[%clk
0:04:32.4]} 10. Nfxd4 {[%clk 0:04:12.4]} 10... Re8 {[%clk 0:04:29.6]} 11. Bf3
{[%clk 0:04:00.5]} 11... Ne5 {[%clk 0:04:26.6]} 12. Bg5 {[%clk 0:03:52.2]} 12...
Nxf3+ {[%clk 0:04:17.7]} 13. Nxf3 {[%clk 0:03:48.2]} 13... Be6 {[%clk
0:04:04.6]} 14. Nfd4 {[%clk 0:03:33.5]} 14... h6 {[%clk 0:04:01.8]} 15. Nxe6
{[%clk 0:03:29.8]} 15... fxe6 {[%clk 0:03:54.2]} 16. Be3 {[%clk 0:03:15.4]}
16... Qc7 {[%clk 0:03:46.8]} 17. c3 {[%clk 0:03:09.6]} 17... Bxh2+ {[%clk
0:03:43.5]} 18. Kh1 {[%clk 0:03:07.9]} 18... Bd6 {[%clk 0:03:32.8]} 19. g3
{[%clk 0:02:47.4]} 19... Rf8 {[%clk 0:03:20.5]} 20. Kg2 {[%clk 0:02:43.5]} 20...
Qf7 {[%clk 0:03:06.8]} 21. Nd4 {[%clk 0:02:31.6]} 21... a6 {[%clk 0:03:02.7]}
22. Qd3 {[%clk 0:02:20.3]} 22... Rae8 {[%clk 0:02:58.1]} 23. Rh1 {[%clk
0:02:16.1]} 23... Ne4 {[%clk 0:02:47]} 24. Raf1 {[%clk 0:02:06.8]} 24... e5
{[%clk 0:02:31.1]} 25. Bxh6 {[%clk 0:01:32.6]} 25... exd4 {[%clk 0:02:20.2]} 26.
Bc1 {[%clk 0:01:16]} 26... dxc3 {[%clk 0:02:10.5]} 27. f3 {[%clk 0:01:13.8]}
27... Nf6 {[%clk 0:01:56.5]} 28. Bg5 {[%clk 0:01:12.1]} 28... cxb2 {[%clk
0:01:49]} 29. Bxf6 {[%clk 0:01:10.4]} 29... gxf6 {[%clk 0:01:46.7]} 30. Rh6
{[%clk 0:01:07.7]} 30... f5 {[%clk 0:01:28]} 31. Rxd6 {[%clk 0:01:05.9]} 31...
Re6 {[%clk 0:01:23.7]} 32. Rxd5 {[%clk 0:01:01.1]} 32... Rfe8 {[%clk 0:01:18.3]}
33. Rxf5 {[%clk 0:00:26.3]} 33... Re2+ {[%clk 0:01:04.8]} 34. Kg1 {[%clk
0:00:21.3]} 34... Qg7 {[%clk 0:01:01]} 35. Qb3+ {[%clk 0:00:14.2]} 35... R8e6
{[%clk 0:00:56.3]} 0-1

[Event "Live Chess"]
[Site "Chess.com"]
[Date "2024.06.02"]
[Round "-"]
[White "vincents82"]
[Black "Ferrarifan27"]
[Result "0-1"]
[WhiteElo "2008"]
[BlackElo "2119"]
[TimeControl "300"]
[EndTime "0:38:54 PDT"]
[Termination "Ferrarifan27 won by resignation"]

1. e4 {[%clk 0:04:56.6]} 1... e5 {[%clk 0:04:58.4]} 2. Nf3 {[%clk 0:04:38.4]}
2... Nc6 {[%clk 0:04:57.1]} 3. Bb5 {[%clk 0:04:37]} 3... a6 {[%clk 0:04:55.5]}
4. Ba4 {[%clk 0:04:35.7]} 4... Nf6 {[%clk 0:04:53.8]} 5. d3 {[%clk 0:04:34.6]}
5... b5 {[%clk 0:04:50.5]} 6. Bb3 {[%clk 0:04:33.5]} 6... Bc5 {[%clk 0:04:48.3]}
7. O-O {[%clk 0:04:30.5]} 7... O-O {[%clk 0:04:46.4]} 8. c3 {[%clk 0:04:29.5]}
8... d6 {[%clk 0:04:44.8]} 9. Re1 {[%clk 0:04:27.9]} 9... Bg4 {[%clk 0:04:42.9]}
10. Nbd2 {[%clk 0:04:26.8]} 10... Bb6 {[%clk 0:04:35.7]} 11. Nf1 {[%clk
0:04:25.6]} 11... Re8 {[%clk 0:04:30.1]} 12. h3 {[%clk 0:04:24.1]} 12... Bh5
{[%clk 0:04:27.9]} 13. Ng3 {[%clk 0:04:23.7]} 13... Bg6 {[%clk 0:04:26.6]} 14.
Nh4 {[%clk 0:04:21.3]} 14... Nxe4 {[%clk 0:04:06.9]} 15. dxe4 {[%clk 0:04:20]}
15... Qxh4 {[%clk 0:04:04.6]} 16. Bd5 {[%clk 0:04:18.9]} 16... Qxg3 {[%clk
0:03:56.2]} 17. Bxc6 {[%clk 0:04:15.2]} 17... Bxf2+ {[%clk 0:03:47.5]} 18. Kh1
{[%clk 0:04:13.5]} 18... Bxe1 {[%clk 0:03:45.4]} 19. Bxa8 {[%clk 0:04:12.4]}
19... Rxa8 {[%clk 0:03:43.3]} 20. Be3 {[%clk 0:04:03.8]} 20... Bxe4 {[%clk
0:03:40.2]} 21. Qe2 {[%clk 0:04:01.6]} 21... Bxg2+ {[%clk 0:02:56.3]} 22. Qxg2
{[%clk 0:03:53.4]} 22... Qxg2+ {[%clk 0:02:55.3]} 23. Kxg2 {[%clk 0:03:52.2]}
23... Bh4 {[%clk 0:02:54.2]} 0-1

[Event "Live Chess"]
[Site "Chess.com"]
[Date "2024.06.02"]
[Round "-"]
[White "AlexanderMatlak"]
[Black "JohanKjeldahl"]
[Result "1-0"]
[WhiteElo "2410"]
[BlackElo "1870"]
[TimeControl "300"]
[EndTime "0:38:56 PDT"]
[Termination "AlexanderMatlak won by resignation"]

1. e4 {[%clk 0:04:55.2]} 1... c5 {[%clk 0:04:57.8]} 2. Be2 {[%clk 0:04:51.2]}
2... Nc6 {[%clk 0:04:55.2]} 3. f4 {[%clk 0:04:49.8]} 3... e6 {[%clk 0:04:54]} 4.
Nf3 {[%clk 0:04:47.4]} 4... a6 {[%clk 0:04:53]} 5. O-O {[%clk 0:04:45.4]} 5...
Nge7 {[%clk 0:04:48.9]} 6. c3 {[%clk 0:04:41.2]} 6... d5 {[%clk 0:04:47.7]} 7.
d3 {[%clk 0:04:35]} 7... Qc7 {[%clk 0:04:43.8]} 8. Na3 {[%clk 0:04:30.2]} 8...
g6 {[%clk 0:04:41.5]} 9. Nc2 {[%clk 0:04:27.5]} 9... Bg7 {[%clk 0:04:40.2]} 10.
Qe1 {[%clk 0:04:22.8]} 10... O-O {[%clk 0:04:38.8]} 11. Qh4 {[%clk 0:04:20.9]}
11... f5 {[%clk 0:04:29.8]} 12. e5 {[%clk 0:04:12.9]} 12... b5 {[%clk
0:04:22.4]} 13. Be3 {[%clk 0:04:08.2]} 13... c4 {[%clk 0:04:09.3]} 14. d4 {[%clk
0:03:56.7]} 14... a5 {[%clk 0:04:06.1]} 15. h3 {[%clk 0:03:41]} 15... b4 {[%clk
0:04:04.6]} 16. g4 {[%clk 0:03:38.1]} 16... Bd7 {[%clk 0:04:01.6]} 17. Kh1
{[%clk 0:03:34]} 17... bxc3 {[%clk 0:03:56.3]} 18. bxc3 {[%clk 0:03:32.6]} 18...
Rab8 {[%clk 0:03:55.5]} 19. Bc1 {[%clk 0:03:15.7]} 19... h6 {[%clk 0:03:37.9]}
20. Ba3 {[%clk 0:03:11.2]} 20... Rb7 {[%clk 0:03:22.4]} 21. Bxe7 {[%clk
0:03:00.1]} 21... Nxe7 {[%clk 0:02:58.9]} 22. Qxe7 {[%clk 0:02:57.5]} 22... fxg4
{[%clk 0:02:58]} 23. hxg4 {[%clk 0:02:48]} 23... Rxf4 {[%clk 0:02:56.8]} 24. Nh4
{[%clk 0:02:28]} 24... g5 {[%clk 0:02:41.4]} 25. Rxf4 {[%clk 0:02:24]} 25...
gxf4 {[%clk 0:02:40.3]} 26. g5 {[%clk 0:02:07.6]} 26... Bf8 {[%clk 0:02:38.7]}
27. Qf6 {[%clk 0:01:59.3]} 27... Bg7 {[%clk 0:02:37.6]} 28. Qg6 {[%clk
0:01:56.6]} 28... Be8 {[%clk 0:02:35.8]} 29. Qxe8+ {[%clk 0:01:28.6]} 1-0

[Event "Live Chess"]
[Site "Chess.com"]
[Date "2024.06.02"]
[Round "-"]
[White "AndrewBak1"]
[Black "Kyrylo7770"]
[Result "1-0"]
[WhiteElo "1884"]
[BlackElo "1629"]
[TimeControl "300"]
[EndTime "0:39:58 PDT"]
[Termination "AndrewBak1 won by resignation"]

1. e4 {[%clk 0:04:58.1]} 1... c6 {[%clk 0:04:59.5]} 2. d4 {[%clk 0:04:57]} 2...
d5 {[%clk 0:04:59.3]} 3. e5 {[%clk 0:04:56.5]} 3... Bf5 {[%clk 0:04:58.4]} 4. h4
{[%clk 0:04:55.7]} 4... h5 {[%clk 0:04:57.4]} 5. Bg5 {[%clk 0:04:54.7]} 5...
Qa5+ {[%clk 0:04:55]} 6. c3 {[%clk 0:04:47.1]} 6... e6 {[%clk 0:04:53.4]} 7. Bd3
{[%clk 0:04:44.8]} 7... Bg4 {[%clk 0:04:51]} 8. f3 {[%clk 0:04:41.4]} 8... Bf5
{[%clk 0:04:50]} 9. Bxf5 {[%clk 0:04:40.4]} 9... exf5 {[%clk 0:04:49.9]} 10. Qd3
{[%clk 0:04:35.8]} 10... g6 {[%clk 0:04:48.8]} 11. Ne2 {[%clk 0:04:32.3]} 11...
Be7 {[%clk 0:04:48]} 12. Nf4 {[%clk 0:04:30.6]} 12... Bxg5 {[%clk 0:04:46.5]}
13. hxg5 {[%clk 0:04:30.5]} 13... Nd7 {[%clk 0:04:43.2]} 14. e6 {[%clk
0:04:20.2]} 14... fxe6 {[%clk 0:04:36.5]} 15. Nxe6 {[%clk 0:04:07.1]} 15... Nb6
{[%clk 0:04:34.6]} 16. Nc7+ {[%clk 0:04:03.4]} 16... Kd7 {[%clk 0:04:30.4]} 17.
Nxa8 {[%clk 0:04:03.3]} 17... Ne7 {[%clk 0:04:29.2]} 18. Nxb6+ {[%clk
0:04:01.5]} 18... Qxb6 {[%clk 0:04:27.5]} 19. b3 {[%clk 0:03:55.8]} 19... Re8
{[%clk 0:04:26.4]} 20. O-O {[%clk 0:03:54.3]} 20... Qc7 {[%clk 0:04:24.4]} 21.
f4 {[%clk 0:03:47.9]} 21... Rh8 {[%clk 0:04:22.3]} 22. Nd2 {[%clk 0:03:44.7]}
22... h4 {[%clk 0:04:21.4]} 23. Nf3 {[%clk 0:03:44.3]} 23... Qxf4 {[%clk
0:04:19.3]} 24. Ne5+ {[%clk 0:03:42.6]} 24... Kd6 {[%clk 0:04:15.9]} 25. Rxf4
{[%clk 0:03:41.5]} 25... h3 {[%clk 0:04:14.1]} 26. Nf7+ {[%clk 0:03:40.6]} 26...
Ke6 {[%clk 0:04:12.9]} 27. Nxh8 {[%clk 0:03:39.5]} 1-0

[Event "Live Chess"]
[Site "Chess.com"]
[Date "2024.06.02"]
[Round "-"]
[White "Dhaydon19"]
[Black "peteopeteo"]
[Result "1-0"]
[WhiteElo "2651"]
[BlackElo "1539"]
[TimeControl "300"]
[EndTime "0:40:22 PDT"]
[Termination "Dhaydon19 won by checkmate"]

1. d4 {[%clk 0:04:56.5]} 1... d5 {[%clk 0:04:56.8]} 2. Nf3 {[%clk 0:04:56.1]}
2... Nf6 {[%clk 0:04:47.5]} 3. g3 {[%clk 0:04:55]} 3... Bf5 {[%clk 0:04:46]} 4.
Bg2 {[%clk 0:04:54.4]} 4... e6 {[%clk 0:04:43.1]} 5. O-O {[%clk 0:04:53.9]} 5...
Nbd7 {[%clk 0:04:42.1]} 6. c3 {[%clk 0:04:52.7]} 6... c5 {[%clk 0:04:41.3]} 7.
Nbd2 {[%clk 0:04:51.6]} 7... Qb6 {[%clk 0:04:40.2]} 8. dxc5 {[%clk 0:04:50.1]}
8... Bxc5 {[%clk 0:04:39.2]} 9. Nb3 {[%clk 0:04:49.2]} 9... O-O {[%clk
0:04:35.9]} 10. Nxc5 {[%clk 0:04:47.8]} 10... Nxc5 {[%clk 0:04:30.6]} 11. Be3
{[%clk 0:04:46.8]} 11... Qc6 {[%clk 0:04:28.5]} 12. Nd4 {[%clk 0:04:43.4]} 12...
Qc7 {[%clk 0:04:19.5]} 13. Nxf5 {[%clk 0:04:40.5]} 13... exf5 {[%clk 0:04:19.4]}
14. Qd4 {[%clk 0:04:25.9]} 14... Ne6 {[%clk 0:04:10.3]} 15. Qd2 {[%clk
0:04:21.6]} 15... Ne4 {[%clk 0:04:06.8]} 16. Qxd5 {[%clk 0:04:18.7]} 16... Rfd8
{[%clk 0:04:04.3]} 17. Qxf5 {[%clk 0:04:16.3]} 17... Nf6 {[%clk 0:03:59.8]} 18.
Rfd1 {[%clk 0:04:14.3]} 18... Qe7 {[%clk 0:03:49.8]} 19. Qc2 {[%clk 0:04:07]}
19... Rac8 {[%clk 0:03:44.3]} 20. Rxd8+ {[%clk 0:04:05.1]} 20... Qxd8 {[%clk
0:03:42.2]} 21. Rd1 {[%clk 0:04:04.8]} 21... Qe7 {[%clk 0:03:38.5]} 22. Qb3
{[%clk 0:04:03.1]} 22... Nc5 {[%clk 0:03:33.8]} 23. Bxc5 {[%clk 0:04:00.2]}
23... Qxc5 {[%clk 0:03:32.2]} 24. Qxb7 {[%clk 0:03:55.9]} 24... Ng4 {[%clk
0:03:29.8]} 25. Rd4 {[%clk 0:03:48.4]} 25... Qf5 {[%clk 0:03:25.1]} 26. Bf3
{[%clk 0:03:40.5]} 26... Re8 {[%clk 0:02:54]} 27. Bxg4 {[%clk 0:03:35.4]} 27...
Qb1+ {[%clk 0:02:52.9]} 28. Kg2 {[%clk 0:03:34.1]} 28... Qg6 {[%clk 0:02:50.5]}
29. Bf3 {[%clk 0:03:32.2]} 29... h5 {[%clk 0:02:47.1]} 30. Bd5 {[%clk
0:03:28.9]} 30... Rxe2 {[%clk 0:02:36.8]} 31. Rf4 {[%clk 0:03:15.1]} 31... Qd6
{[%clk 0:02:18.9]} 32. Qxf7+ {[%clk 0:03:11.7]} 32... Kh8 {[%clk 0:02:17.3]} 33.
Qg8# {[%clk 0:03:10.1]} 1-0

[Event "Live Chess"]
[Site "Chess.com"]
[Date "2024.06.02"]
[Round "-"]
[White "wadsy27"]
[Black "JanMur7"]
[Result "1-0"]
[WhiteElo "2584"]
[BlackElo "2250"]
[TimeControl "300"]
[EndTime "0:41:17 PDT"]
[Termination "wadsy27 won by resignation"]

1. d4 {[%clk 0:04:58.8]} 1... Nf6 {[%clk 0:04:56.4]} 2. c4 {[%clk 0:04:58.1]}
2... a6 {[%clk 0:04:54.6]} 3. Nc3 {[%clk 0:04:56]} 3... b5 {[%clk 0:04:53.7]} 4.
cxb5 {[%clk 0:04:54.3]} 4... axb5 {[%clk 0:04:53.6]} 5. Nxb5 {[%clk 0:04:52.5]}
5... e5 {[%clk 0:04:52.7]} 6. Nc3 {[%clk 0:04:45.6]} 6... Bb4 {[%clk 0:04:51.3]}
7. dxe5 {[%clk 0:04:41.7]} 7... Ne4 {[%clk 0:04:50.3]} 8. Bd2 {[%clk 0:04:41]}
8... Nxd2 {[%clk 0:04:49.1]} 9. Qxd2 {[%clk 0:04:40.5]} 9... Nc6 {[%clk
0:04:48.5]} 10. Nf3 {[%clk 0:04:39.3]} 10... Qe7 {[%clk 0:04:47.6]} 11. e3
{[%clk 0:04:31.3]} 11... Nxe5 {[%clk 0:04:46.6]} 12. Be2 {[%clk 0:04:22.6]}
12... O-O {[%clk 0:04:38.9]} 13. Nxe5 {[%clk 0:04:19.5]} 13... Qxe5 {[%clk
0:04:38.8]} 14. Bf3 {[%clk 0:04:18.9]} 14... Ra3 {[%clk 0:04:37.5]} 15. O-O
{[%clk 0:04:11.4]} 15... Rxc3 {[%clk 0:04:36]} 16. bxc3 {[%clk 0:04:10.6]} 16...
Bxc3 {[%clk 0:04:35.1]} 17. Qd1 {[%clk 0:04:08.2]} 17... Bxa1 {[%clk 0:04:34.1]}
18. Qxa1 {[%clk 0:04:08.1]} 18... Qxa1 {[%clk 0:04:34]} 19. Rxa1 {[%clk
0:04:07.5]} 19... Ba6 {[%clk 0:04:07]} 20. Rd1 {[%clk 0:03:56.4]} 20... d6
{[%clk 0:03:56.9]} 21. Rb1 {[%clk 0:03:53.3]} 21... g6 {[%clk 0:03:41.8]} 22.
Bc6 {[%clk 0:03:50]} 22... Rd8 {[%clk 0:03:30.7]} 23. e4 {[%clk 0:03:46.6]}
23... Kg7 {[%clk 0:03:29.3]} 24. f3 {[%clk 0:03:45.5]} 24... Kf6 {[%clk
0:03:28.2]} 25. Kf2 {[%clk 0:03:44.9]} 25... Bc4 {[%clk 0:03:10.2]} 26. a4
{[%clk 0:03:38.2]} 26... d5 {[%clk 0:03:07.8]} 27. Rc1 {[%clk 0:03:27.3]} 27...
h5 {[%clk 0:02:21.1]} 28. Ke3 {[%clk 0:03:12.6]} 28... d4+ {[%clk 0:02:19.3]}
29. Kd2 {[%clk 0:03:11.9]} 29... Ba6 {[%clk 0:02:09.9]} 30. Bd5 {[%clk
0:03:08.7]} 30... Rc8 {[%clk 0:02:06.3]} 31. Rc6+ {[%clk 0:03:07.4]} 1-0

[Event "Live Chess"]
[Site "Chess.com"]
[Date "2024.06.02"]
[Round "-"]
[White "Tatarinov_Maxim"]
[Black "ProfPoisson"]
[Result "0-1"]
[WhiteElo "2261"]
[BlackElo "1340"]
[TimeControl "300"]
[EndTime "0:41:23 PDT"]
[Termination "ProfPoisson won by resignation"]

1. d4 {[%clk 0:04:57.4]} 1... e6 {[%clk 0:04:57.2]} 2. c4 {[%clk 0:04:56.4]}
2... f5 {[%clk 0:04:53.8]} 3. g3 {[%clk 0:04:54.5]} 3... Nf6 {[%clk 0:04:50.2]}
4. Bg2 {[%clk 0:04:54]} 4... Be7 {[%clk 0:04:48.5]} 5. Nd2 {[%clk 0:04:53.2]}
5... O-O {[%clk 0:04:47.1]} 6. Ngf3 {[%clk 0:04:50.9]} 6... d6 {[%clk
0:04:46.1]} 7. O-O {[%clk 0:04:49.9]} 7... a5 {[%clk 0:04:39.1]} 8. b3 {[%clk
0:04:46.8]} 8... Qe8 {[%clk 0:04:22.4]} 9. Bb2 {[%clk 0:04:43.7]} 9... Ne4
{[%clk 0:04:12.5]} 10. d5 {[%clk 0:04:35.9]} 10... e5 {[%clk 0:04:07.2]} 11.
Nxe4 {[%clk 0:04:34]} 11... fxe4 {[%clk 0:04:04.4]} 12. Nd2 {[%clk 0:04:33.9]}
12... Bf5 {[%clk 0:03:47.8]} 13. Nxe4 {[%clk 0:04:28.8]} 13... Bxe4 {[%clk
0:03:44.9]} 14. Bxe4 {[%clk 0:04:28.7]} 14... Nd7 {[%clk 0:03:40]} 15. Qc2
{[%clk 0:04:24.3]} 15... Nf6 {[%clk 0:03:34.2]} 16. Bf3 {[%clk 0:04:23.3]} 16...
h5 {[%clk 0:03:17.6]} 17. h4 {[%clk 0:04:16.1]} 17... Qd7 {[%clk 0:02:56.6]} 18.
a3 {[%clk 0:04:11.6]} 18... Ng4 {[%clk 0:02:53.2]} 19. b4 {[%clk 0:04:05.2]}
19... axb4 {[%clk 0:02:42.8]} 20. axb4 {[%clk 0:04:05.1]} 20... Rxa1 {[%clk
0:02:39.4]} 21. Bxa1 {[%clk 0:04:04.1]} 21... Qf5 {[%clk 0:02:28.3]} 22. Qxf5
{[%clk 0:04:02]} 22... Rxf5 {[%clk 0:02:26.7]} 23. Bxg4 {[%clk 0:03:49.8]} 23...
hxg4 {[%clk 0:02:23.8]} 24. Kg2 {[%clk 0:03:49.7]} 24... Kf7 {[%clk 0:02:11.5]}
25. Bc3 {[%clk 0:03:46.1]} 25... c6 {[%clk 0:02:08.9]} 26. Ra1 {[%clk 0:03:38]}
26... cxd5 {[%clk 0:01:41.7]} 27. cxd5 {[%clk 0:03:37.9]} 27... Kg6 {[%clk
0:01:28.9]} 28. Ra7 {[%clk 0:03:35.8]} 28... Bf6 {[%clk 0:01:19.7]} 29. Rxb7
{[%clk 0:03:29.1]} 29... e4 {[%clk 0:01:18.2]} 30. Bxf6 {[%clk 0:03:26.7]} 30...
Kxf6 {[%clk 0:01:15.2]} 31. Rb5 {[%clk 0:03:19.2]} 31... Re5 {[%clk 0:01:11.5]}
32. e3 {[%clk 0:03:17.6]} 32... Rf5 {[%clk 0:01:08.3]} 33. Kf1 {[%clk
0:03:14.2]} 33... Ke5 {[%clk 0:01:02.4]} 34. Ke2 {[%clk 0:03:13.4]} 34... Kf6
{[%clk 0:00:58.1]} 35. Ra5 {[%clk 0:02:57.2]} 35... Ke5 {[%clk 0:00:54.4]} 36.
Ra2 {[%clk 0:02:50.6]} 36... Rf7 {[%clk 0:00:51.9]} 37. b5 {[%clk 0:02:37.8]}
37... Kxd5 {[%clk 0:00:47.8]} 38. b6 {[%clk 0:02:36.9]} 38... Rb7 {[%clk
0:00:45.2]} 39. Rb2 {[%clk 0:02:35.9]} 39... Kc6 {[%clk 0:00:43.3]} 40. Rb4
{[%clk 0:02:32]} 40... d5 {[%clk 0:00:40.8]} 41. Kd2 {[%clk 0:02:31.2]} 41...
Rxb6 {[%clk 0:00:38.1]} 42. Kc3 {[%clk 0:02:29.6]} 42... Rxb4 {[%clk 0:00:35.1]}
43. Kxb4 {[%clk 0:02:28.8]} 43... Kd6 {[%clk 0:00:34]} 44. Kb5 {[%clk
0:02:25.3]} 44... Ke5 {[%clk 0:00:32.5]} 45. Kc5 {[%clk 0:02:24.3]} 45... g6
{[%clk 0:00:29.6]} 46. Kc6 {[%clk 0:02:14.4]} 46... d4 {[%clk 0:00:26.7]} 47.
exd4+ {[%clk 0:02:14.3]} 47... Kxd4 {[%clk 0:00:25.2]} 48. Kd6 {[%clk
0:02:14.2]} 48... e3 {[%clk 0:00:23.5]} 49. fxe3+ {[%clk 0:02:13.1]} 49... Kxe3
{[%clk 0:00:23.1]} 50. Ke5 {[%clk 0:02:12]} 50... Kf3 {[%clk 0:00:22.8]} 51. Kf6
{[%clk 0:02:11.2]} 51... Kxg3 {[%clk 0:00:21.3]} 52. Kxg6 {[%clk 0:02:11.1]}
52... Kxh4 {[%clk 0:00:20.2]} 53. Kf5 {[%clk 0:02:09.5]} 53... g3 {[%clk
0:00:19.7]} 0-1

[Event "Live Chess"]
[Site "Chess.com"]
[Date "2024.06.02"]
[Round "-"]
[White "Kyrylo7770"]
[Black "Ksenia_2013"]
[Result "1-0"]
[WhiteElo "1629"]
[BlackElo "943"]
[TimeControl "300"]
[EndTime "0:42:11 PDT"]
[Termination "Kyrylo7770 won by checkmate"]

1. d4 {[%clk 0:04:56.3]} 1... d5 {[%clk 0:04:58.6]} 2. Nf3 {[%clk 0:04:55.7]}
2... Bf5 {[%clk 0:04:57.2]} 3. Bg5 {[%clk 0:04:55.2]} 3... Nf6 {[%clk
0:04:56.2]} 4. e3 {[%clk 0:04:54.7]} 4... g6 {[%clk 0:04:55.1]} 5. h3 {[%clk
0:04:53.9]} 5... Bg7 {[%clk 0:04:54.1]} 6. c3 {[%clk 0:04:53.2]} 6... O-O {[%clk
0:04:52.2]} 7. Bd3 {[%clk 0:04:52.7]} 7... Bxd3 {[%clk 0:04:44.4]} 8. Qxd3
{[%clk 0:04:51.8]} 8... Nc6 {[%clk 0:04:41.7]} 9. h4 {[%clk 0:04:51.2]} 9... h6
{[%clk 0:04:39.3]} 10. Bxf6 {[%clk 0:04:50.5]} 10... Bxf6 {[%clk 0:04:37.3]} 11.
h5 {[%clk 0:04:49.1]} 11... Bg7 {[%clk 0:04:34.5]} 12. hxg6 {[%clk 0:04:48.1]}
12... fxg6 {[%clk 0:04:32.8]} 13. Qxg6 {[%clk 0:04:47.7]} 13... e5 {[%clk
0:04:23.8]} 14. Rxh6 {[%clk 0:04:45.1]} 14... Rf6 {[%clk 0:04:19.8]} 15. Qh7+
{[%clk 0:04:41.1]} 15... Kf7 {[%clk 0:04:18]} 16. Rxf6+ {[%clk 0:04:40.5]} 16...
Kxf6 {[%clk 0:04:15.8]} 17. Qh4+ {[%clk 0:04:36.8]} 17... Kf7 {[%clk 0:04:11.1]}
18. Ng5+ {[%clk 0:04:35.6]} 18... Kg6 {[%clk 0:04:08.3]} 19. Qh7+ {[%clk
0:04:28.1]} 19... Kxg5 {[%clk 0:04:03.9]} 20. Qxg7+ {[%clk 0:04:27.2]} 20... Kh5
{[%clk 0:04:00.7]} 21. g4+ {[%clk 0:04:25.4]} 21... Kh4 {[%clk 0:03:58.2]} 22.
Nd2 {[%clk 0:04:23.1]} 22... exd4 {[%clk 0:03:47.2]} 23. O-O-O {[%clk
0:04:21.8]} 23... dxe3 {[%clk 0:03:44.4]} 24. Rh1# {[%clk 0:04:20.8]} 1-0